bitfinex/quotes_ETHUSD_20260108
["timestamp","ask_amount","ask_price","bid_price","bid_amount"]
[1767866542686,0.847,3098.9,3098.0,1.16199556]
[1767866543510,0.04033168,3099.3,3098.1,6.45556954]
[1767866543880,0.847,3099.2,3098.2,0.002]
[1767866544078,0.04033429,3099.1,3098.2,0.002]
[1767866544604,0.19927837,3099.6,3098.2,1.16399556]
[1767866544784,0.8873187,3099.5,3098.2,1.16399556]
[1767866545186,0.0403187,3099.5,3098.2,1.16399556]
[1767866545391,0.847,3099.5,3098.4,1.16199556]
[1767866545591,0.0403187,3099.4,3098.4,1.16199556]
[1767866547393,0.847,3099.5,3098.4,1.16199556]
[1767866547594,0.0403187,3099.4,3098.5,6.45473616]
[1767866547908,0.0403187,3099.4,3098.6,1.16199556]
[1767866548110,0.847,3099.4,3098.6,1.16199556]
[1767866548280,0.0403187,3099.3,3098.6,1.16199556]
[1767866548481,0.847,3099.6,3098.6,1.16199556]
[1767866548695,0.0403187,3099.5,3098.6,1.16199556]
[1767866549311,0.0403187,3099.5,3098.5,3.22736808]
[1767866549510,3.22643092,3099.4,3098.3,3.22757641]
[1767866549713,3.22643092,3099.4,3098.2,0.002]
[1767866549714,1.19689981,3099.3,3098.2,0.002]
[1767866550089,1.19689981,3099.3,3097.9,0.00010439]
[1767866550304,1.15658111,3099.1,3097.9,0.00010439]
[1767866550614,0.8873187,3099.0,3097.9,0.00010439]
[1767866550988,1.15658111,3098.9,3097.9,0.00010439]
[1767866551220,1.19689981,3098.8,3097.9,0.00010439]
[1767866551623,1.19689981,3098.8,3097.0,0.003]
[1767866551624,1.15658111,3098.2,3097.0,0.003]
[1767866551784,4.68114656,3097.7,3096.0,0.00323]
[1767866551980,1.15658111,3097.9,3096.0,0.00323]
[1767866552316,1.40668868,3098.1,3096.6,1.22090772]
[1767866552502,1.18379955,3098.8,3096.6,1.22090772]
[1767866552503,0.0403187,3098.7,3097.0,1.21890772]
[1767866552812,0.8873187,3098.6,3097.2,1.21890772]
[1767866553017,0.0403187,3098.6,3097.2,1.21890772]
[1767866553181,0.847,3098.5,3097.2,1.21890772]
[1767866553385,1.18379955,3099.7,3097.3,1.2511939]
[1767866553698,7.33976416,3099.6,3097.5,1.21890772]
[1767866553906,0.847,3099.5,3097.7,1.21890772]
[1767866554105,0.0403187,3099.4,3097.7,1.21890772]
[1767866555109,1.22411825,3099.4,3097.7,1.21890772]
[1767866555311,1.39091138,3099.3,3097.4,6.45702846]
[1767866555627,6.45348648,3099.1,3097.3,6.45723694]
[1767866555805,0.0403187,3099.0,3097.4,1.25119286]
[1767866556007,0.847,3098.9,3097.4,1.25119286]
[1767866556206,0.0403187,3098.8,3097.4,1.25119286]
[1767866556386,0.0403187,3098.8,3097.6,1.21890772]
[1767866556812,0.0403187,3098.8,3097.9,1.21890772]
[1767866556986,0.847,3098.9,3097.9,1.21890772]
[1767866557201,0.001,3099.3,3097.9,1.21890772]
[1767866557601,0.001,3099.3,3098.1,1.21890772]
[1767866557802,0.41148102,3099.2,3098.1,1.21890772]
[1767866558016,0.0403187,3099.1,3098.1,1.21890772]
[1767866558212,0.001,3099.3,3098.1,1.21890772]
[1767866558426,0.0413187,3099.3,3098.1,1.21890772]
[1767866559526,0.001,3099.3,3098.1,1.21890772]
[1767866559729,0.0413187,3099.3,3098.2,7.67426888]
[1767866559919,0.36808646,3099.3,3098.2,7.67426888]
[1767866560119,3.26785892,3099.3,3098.2,4.4465883]
[1767866560325,3.26785892,3099.3,3098.2,1.21890772]
[1767866560626,6.49439914,3099.3,3098.2,1.21890772]
[1767866560831,3.22754022,3099.3,3098.2,1.21890772]
[1767866560995,3.22754022,3099.3,3098.2,1.25118452]
[1767866561325,3.22757601,3099.3,3098.2,1.21890772]
[1767866561516,0.0413187,3099.3,3098.2,1.21890772]
[1767866561715,3.26787188,3099.3,3098.4,1.21890772]
[1767866562196,6.45410636,3099.3,3098.1,3.22772762]
[1767866562404,6.45410636,3099.3,3097.9,1.21890772]
[1767866562704,0.73011064,3099.2,3098.0,3.26011277]
[1767866562926,0.0403187,3099.1,3098.1,3.22776024]
[1767866563127,0.0403187,3099.1,3097.9,1.21890772]
[1767866563506,0.0403187,3099.1,3098.0,3.22782837]
[1767866563709,3.22684737,3099.0,3098.0,3.22782837]
[1767866563910,3.9568142,3099.2,3098.1,1.21890772]
[1767866563911,0.73011064,3099.2,3098.1,1.21890772]
[1767866564109,0.0403187,3099.1,3098.1,1.21890772]
[1767866564310,0.0403187,3099.2,3098.1,1.21890772]
[1767866565529,0.0413187,3099.3,3098.1,1.21890772]
[1767866565727,0.001,3099.3,3098.1,1.25118556]
[1767866565928,0.001,3099.3,3098.3,1.21890772]
[1767866566131,0.001,3099.3,3098.5,1.21890772]
[1767866567841,0.001,3099.3,3098.7,1.21890772]
[1767866568137,3.2268183,3100.0,3099.2,1.21890772]
[1767866568138,0.001,3100.0,3099.2,1.21890772]
[1767866569433,0.04031217,3100.8,3099.7,1.21890772]
[1767866570021,0.04031217,3100.8,3099.8,7.67093688]
[1767866570201,0.45152326,3100.8,3099.9,1.21890772]
[1767866570738,3.6765047,3100.8,3099.9,1.21890772]
[1767866571139,0.45152326,3100.8,3099.9,1.21890772]
[1767866571538,6.90148658,3100.8,3099.5,1.21890772]
[1767866571739,3.63618529,3100.8,3099.7,3.22610827]
[1767866572034,3.63618529,3100.8,3099.3,0.847]
[1767866572035,0.68610695,3100.7,3099.6,4.44513045]
[1767866572240,0.68610695,3100.7,3099.6,7.67135318]
[1767866572439,0.04031477,3100.6,3099.7,1.21890772]
[1767866572733,3.22454196,3101.3,3099.7,1.21890772]
[1767866572941,1.18379955,3101.9,3099.9,1.21890772]
[1767866573131,0.04029918,3101.8,3100.3,1.21890772]
[1767866573441,0.04029918,3101.8,3100.2,4.46795874]
[1767866573442,6.48733156,3102.2,3100.5,1.21890772]
[1767866573621,0.85181311,3102.1,3100.5,1.21890772]
[1767866573820,0.04029658,3102.0,3100.5,1.21890772]
[1767866574019,3.22383055,3101.9,3100.7,1.21890772]
[1767866574221,0.04029788,3101.9,3100.7,1.21890772]
[1767866575507,0.04029658,3102.0,3100.8,0.847]
[1767866575838,0.64876693,3101.9,3100.7,1.21890772]
[1767866576135,6.44807686,3101.7,3100.7,1.21890772]
[1767866576433,0.04030177,3101.6,3100.6,0.847]
[1767866576937,0.04030177,3101.6,3100.6,4.0721413]
[1767866577106,0.04030177,3101.6,3100.3,1.21890772]
[1767866577309,0.64883786,3101.5,3100.2,4.07258255]
[1767866577510,0.04030437,3101.4,3100.2,0.847]
[1767866577737,0.04030437,3101.4,3100.3,1.21890772]
[1767866577939,0.04030567,3101.3,3099.9,1.21890772]
[1767866578143,6.44911646,3101.2,3100.0,3.22579255]
[1767866578318,0.68925048,3101.1,3100.0,3.22579255]
[1767866578509,0.68925048,3101.1,3099.9,4.4447757]
[1767866578834,0.68925048,3101.1,3099.9,7.67068621]
[1767866579139,0.68925048,3101.1,3100.0,1.21890772]
[1767866579338,0.04030957,3101.0,3100.0,1.21890772]
[1767866579545,0.04030437,3101.4,3100.0,1.21890772]
[1767866579914,3.26466594,3101.4,3100.2,1.21890772]
[1767866580114,0.04030437,3101.4,3100.5,7.6694802]
[1767866580353,3.2645828,3101.5,3100.0,1.21890772]
[1767866580553,1.9570537,3101.4,3100.0,2.06590772]
[1767866580754,0.04030567,3101.3,3099.8,0.847]
[1767866580964,1.22410522,3101.3,3099.6,1.21890772]
[1767866581111,5.65175829,3101.2,3099.7,0.847]
[1767866581315,0.60951467,3101.1,3099.7,0.847]
[1767866581620,0.04030827,3101.1,3099.7,4.07310604]
[1767866581932,0.04030827,3101.1,3099.7,4.07307006]
[1767866582116,10.88131222,3100.9,3100.0,0.002]
[1767866582454,0.04031217,3100.8,3100.0,0.002]
[1767866583024,3.22487019,3100.9,3100.0,0.002]
[1767866583224,0.32248702,3100.8,3100.0,0.002]
[1767866583426,0.04031347,3100.7,3100.0,0.002]
[1767866584255,5.68058949,3100.5,3099.1,1.28219649]
[1767866584564,4.46795874,3100.1,3098.7,4.50926722]
[1767866584726,4.46795874,3100.1,3098.9,3.22694061]
[1767866584727,0.44679587,3100.0,3098.9,3.22694061]
[1767866585060,0.44679587,3100.0,3098.8,1.28219649]
[1767866585354,0.44679587,3100.0,3098.4,0.002]
[1767866585355,4.46795874,3100.1,3098.6,1.28219649]
[1767866585547,1.21263075,3100.3,3098.7,0.03227159]
[1767866585721,0.88731737,3100.4,3099.0,1.28219649]
[1767866585920,0.88731737,3100.4,3099.3,4.50866872]
[1767866586146,6.4509886,3100.3,3099.3,1.28219649]
[1767866586352,0.7338306,3100.2,3099.1,0.847]
[1767866586569,0.7338306,3100.2,3099.1,4.0737395]
[1767866587641,3.22570239,3100.1,3099.1,4.0737395]
[1767866587842,1.21263075,3100.7,3099.1,13.05063797]
[1767866588043,3.22515748,3100.7,3099.2,1.31446288]
[1767866588278,0.32251575,3100.6,3099.5,4.46795874]
[1767866588430,3.26525312,3100.9,3099.5,5.75015523]
[1767866588783,4.47788387,3100.9,3099.6,0.847]
[1767866589062,3.26525312,3100.9,3099.7,1.28219649]
[1767866589556,3.26525312,3100.9,3099.1,3.2267395]
[1767866589557,10.88786535,3100.7,3099.1,3.2267395]
[1767866589854,1.25294552,3100.6,3099.0,7.73584487]
[1767866590060,1.09281801,3100.5,3099.0,7.73584487]
[1767866590239,0.04031737,3100.4,3099.0,7.73584487]
[1767866590423,0.04031737,3100.4,3099.0,4.5089975]
[1767866590830,0.04031737,3100.4,3099.0,7.73584487]
[1767866591542,0.04031737,3100.4,3099.0,1.28219649]
[1767866591746,6.4509886,3100.3,3099.0,4.50902779]
[1767866591951,0.6894493,3100.2,3099.1,1.28219649]
[1767866592348,0.6894493,3100.2,3099.0,3.22680223]
[1767866592628,0.6894493,3100.2,3099.0,3.22680404]
[1767866592833,0.6894493,3100.2,3099.0,4.50900053]
[1767866593345,0.6894493,3100.2,3099.0,7.7358479]
[1767866593537,0.39149436,3100.1,3099.1,1.28219649]
[1767866593863,0.6894493,3100.2,3099.3,1.28219649]
[1767866594070,0.0403187,3100.2,3099.3,1.28219649]
[1767866594370,6.49046987,3100.7,3099.3,1.28419649]
[1767866594569,0.04031477,3100.6,3099.3,1.28419649]
[1767866594774,0.001,3100.1,3099.3,1.28419649]
[1767866594936,0.001,3100.1,3099.4,1.28219649]
[1767866595808,0.001,3101.1,3099.6,1.28219649]
[1767866596016,0.001,3101.1,3099.8,1.28219649]
[1767866596471,0.04130827,3101.1,3099.8,1.28219649]
[1767866597070,0.001,3101.1,3099.8,1.28219649]
[1767866597267,0.04130827,3101.1,3099.8,1.28219649]
[1767866597475,0.001,3101.1,3100.0,1.28219649]
[1767866597774,0.001,3101.1,3099.9,0.21291965]
[1767866597775,0.001,3101.1,3100.2,1.28219649]
[1767866598662,0.001,3101.1,3099.9,1.05991965]
[1767866598961,0.001,3101.1,3100.0,4.50800199]
[1767866599161,0.001,3101.1,3100.1,1.28219649]
[1767866599884,0.001,3101.1,3099.9,1.28219649]
[1767866600088,0.04130827,3101.1,3099.9,1.28219649]
[1767866600680,0.001,3101.1,3099.9,1.28219649]
[1767866601264,4.46795874,3100.7,3099.5,1.28219649]
[1767866601596,0.48711064,3100.6,3099.3,0.002]
[1767866601776,3.22528624,3100.5,3099.3,0.002]
[1767866602090,0.04031737,3100.4,3099.3,0.002]
[1767866603564,1.21263075,3100.3,3099.3,0.002]
[1767866603891,0.8873187,3100.2,3099.3,0.002]
[1767866604090,0.0403187,3100.2,3099.3,0.002]
[1767866604493,3.26593547,3100.2,3099.3,0.002]
[1767866604679,0.41129355,3100.1,3099.3,0.002]
[1767866604883,0.0403187,3100.0,3099.3,0.002]
[1767866605759,6.45182102,3099.9,3099.3,0.002]
[1767866605964,3.22591051,3099.9,3099.0,0.002]
[1767866606399,3.26622921,3099.9,3099.0,0.002]
[1767866606714,0.32662292,3099.8,3099.0,0.002]
[1767866606892,0.32662292,3099.8,3099.6,0.002]
[1767866607094,0.32662292,3099.8,3099.0,0.002]
[1767866607487,0.32662292,3099.8,3099.3,0.002]
[1767866607708,6.45244546,3099.6,3099.0,0.002]
[1767866607902,0.72994455,3099.5,3098.4,0.002]
[1767866609090,0.72994455,3099.5,3098.4,1.28419649]
[1767866610303,4.46795874,3099.1,3098.2,0.002]
[1767866610508,0.847,3099.1,3098.2,0.002]
[1767866612010,0.847,3099.1,3098.2,3.22964421]
[1767866612509,4.07381167,3099.1,3098.2,0.002]
[1767866612977,4.07377239,3099.1,3098.2,0.002]
[1767866613173,0.40737724,3099.0,3098.2,0.002]
[1767866614337,0.40737724,3099.0,3098.3,4.4750704]
[1767866614506,0.847,3099.3,3098.4,1.27976871]
[1767866614707,0.847,3099.5,3098.4,1.24749399]
[1767866614906,0.847,3099.5,3098.6,1.24749399]
[1767866615234,0.0403187,3099.4,3098.2,4.47714137]
[1767866615730,0.0403187,3099.4,3098.2,4.47716031]
[1767866616238,6.45307004,3099.3,3098.2,0.002]
[1767866616419,1.13532636,3099.2,3098.2,0.002]
[1767866617139,0.847,3099.1,3098.2,1.24949399]
[1767866617310,0.847,3099.1,3098.4,1.24749399]
[1767866617510,0.8873187,3099.1,3098.4,1.24749399]
[1767866617710,0.0403187,3099.1,3098.4,1.24749399]
[1767866618038,0.0403187,3099.3,3098.2,0.002]
[1767866618243,0.73402736,3099.2,3098.2,0.002]
[1767866618451,0.0403187,3099.1,3098.2,1.24949399]
[1767866618617,0.0403187,3099.1,3098.2,0.002]
[1767866619318,0.0403187,3099.1,3098.0,0.002]
[1767866619646,5.69818798,3099.0,3098.0,0.002]
[1767866619807,1.23022924,3098.8,3097.9,0.002]
[1767866620013,0.8873187,3098.7,3097.9,0.002]
[1767866620229,0.8873187,3098.7,3097.8,0.002]
[1767866620541,3.22726392,3098.6,3097.8,0.002]
[1767866620743,1.23122924,3098.8,3097.8,0.002]
[1767866620744,0.001,3098.8,3097.8,1.24949399]
[1767866620949,4.46795874,3098.5,3097.7,0.002]
[1767866621150,0.44679587,3098.4,3097.7,0.002]
[1767866621354,0.0403187,3098.5,3097.7,0.002]
[1767866621958,0.0403187,3098.4,3097.7,1.24949399]
[1767866622456,6.45518761,3098.8,3097.8,1.24749399]
[1767866622457,0.001,3098.8,3097.8,1.24749399]
[1767866622623,0.001,3098.8,3097.8,1.27977496]
[1767866622824,0.001,3098.8,3097.8,1.24749399]
[1767866623142,0.001,3098.8,3098.0,1.24749399]
[1767866623343,1.23022924,3099.9,3098.2,1.24749399]
[1767866623548,0.0403187,3099.7,3098.4,1.24749399]
[1767866623836,0.001,3100.1,3098.4,1.24749399]
[1767866624034,0.001,3100.1,3098.8,1.24749399]
[1767866624238,3.26704957,3100.1,3098.8,1.24749399]
[1767866624439,0.0413187,3100.1,3099.0,1.24749399]
[1767866624764,0.001,3100.1,3099.2,1.24749399]
[1767866624929,1.23022924,3101.6,3099.8,1.24749399]
[1767866625131,0.847,3101.0,3099.8,1.24749399]
[1767866625331,0.88730957,3101.0,3099.8,1.24749399]
[1767866625564,0.001,3101.1,3099.8,1.24749399]
[1767866625772,1.17457696,3101.1,3099.8,1.24749399]
[1767866625933,0.04030957,3101.0,3099.8,1.24749399]
[1767866626347,0.001,3101.1,3099.9,4.4734045]
[1767866626554,0.001,3101.1,3099.6,3.22622078]
[1767866626832,1.23022924,3101.0,3099.6,3.22622078]
[1767866627033,1.23022924,3101.0,3099.3,0.847]
[1767866627034,1.23022924,3100.8,3099.7,3.22610608]
[1767866627354,0.04031347,3100.7,3099.7,3.22610608]
[1767866627557,1.23022924,3100.5,3098.4,1.24749399]
[1767866627756,1.23022924,3100.3,3098.4,1.24749399]
[1767866627958,2.11754794,3100.2,3098.5,2.09449399]
[1767866628256,0.25207349,3100.1,3099.0,3.22684303]
[1767866628454,0.25207349,3100.1,3098.7,7.70181353]
[1767866628663,0.25207349,3100.1,3098.8,1.24749399]
[1767866628664,0.8873187,3100.1,3098.8,1.24749399]
[1767866628858,0.0403187,3100.1,3098.8,1.24749399]
[1767866629041,0.88731867,3100.3,3098.8,1.27976454]
[1767866629360,0.847,3100.3,3098.8,1.27976454]
[1767866629564,0.0403187,3100.2,3098.8,1.27976454]
[1767866629864,0.847,3100.5,3099.0,1.24749399]
[1767866630560,3.22488863,3100.9,3099.2,1.24749399]
[1767866630868,0.001,3101.1,3099.2,1.24749399]
[1767866630869,7.33726057,3100.8,3099.2,1.24749399]
[1767866631164,5.69818798,3100.6,3099.0,3.22680574]
[1767866631330,0.61013487,3100.5,3099.0,6.45365311]
[1767866631528,0.61013487,3100.5,3099.0,3.22680574]
[1767866631735,0.61013487,3100.5,3098.7,1.24749399]
[1767866631736,0.001,3100.0,3098.7,1.24749399]
[1767866631931,0.847,3099.9,3098.3,1.24749399]
[1767866632144,0.0403187,3099.8,3098.3,1.24749399]
[1767866632442,0.0403187,3099.8,3098.0,3.22788865]
[1767866632443,6.45244546,3099.6,3098.0,3.22788865]
[1767866632642,6.45244546,3099.6,3098.1,0.44753826]
[1767866632643,0.77026325,3099.5,3098.1,0.44753826]
[1767866632942,0.77026325,3099.5,3098.1,1.69503225]
[1767866633147,0.847,3099.4,3098.2,1.24749399]
[1767866633348,0.0403187,3099.3,3098.2,1.24749399]
[1767866634971,1.37167828,3099.3,3098.3,6.94735652]
[1767866635139,0.0403187,3099.3,3098.4,1.24749399]
[1767866635475,0.0403187,3099.4,3098.4,1.24749399]
[1767866637141,0.0403187,3099.4,3098.3,6.94735652]
[1767866637142,0.0403187,3099.4,3098.6,1.24749399]
[1767866637381,0.847,3099.5,3098.6,1.24749399]
[1767866637742,0.847,3099.5,3098.7,1.24749399]
[1767866637946,0.001,3100.0,3098.8,1.24749399]
[1767866638250,0.001,3100.0,3098.9,1.2797635]
[1767866638471,0.848,3100.0,3098.9,1.24749399]
[1767866638670,0.0413187,3100.0,3099.1,1.24749399]
[1767866639379,0.0413187,3100.0,3099.2,3.22663913]
[1767866639563,3.67852145,3100.0,3099.1,1.24749399]
[1767866639769,3.67852145,3100.0,3098.7,1.69503225]
[1767866639959,3.67852145,3100.0,3099.1,3.22673469]
[1767866640450,0.45271369,3100.0,3099.1,6.45347793]
[1767866640652,0.0413187,3100.0,3099.1,3.22673469]
[1767866640969,3.26714221,3100.0,3099.0,3.22678182]
[1767866641152,6.49296572,3100.0,3098.9,1.24749399]
[1767866641479,6.49296572,3100.0,3098.9,4.47442821]
[1767866641480,3.22682351,3100.0,3098.9,4.47442821]
[1767866641792,0.001,3100.0,3099.0,1.24749399]
[1767866642281,0.04031217,3100.8,3099.6,1.24973096]
[1767866642455,4.07214701,3100.7,3099.6,1.24973096]
[1767866642652,0.04031477,3100.6,3099.6,1.24973096]
[1767866643168,3.22494516,3100.9,3099.1,0.03226743]
[1767866643169,0.04031217,3100.8,3099.7,6.4522373]
[1767866643385,0.88731217,3100.8,3099.8,1.24973096]
[1767866643697,0.001,3101.1,3099.8,1.24973096]
[1767866643858,0.847,3101.0,3099.8,1.24973096]
[1767866644090,0.04031087,3100.9,3099.8,1.24973096]
[1767866644294,0.001,3101.1,3099.8,1.24973096]
[1767866645076,4.51334257,3102.5,3099.7,21.6565917]
[1767866645077,0.04029918,3101.8,3100.8,1.19695194]
[1767866645286,0.847,3102.2,3101.0,1.19695194]
[1767866645510,4.67899845,3103.3,3100.9,6.44974038]
[1767866645511,0.847,3102.3,3101.1,1.19695194]
[1767866646027,3.22316216,3102.6,3101.1,1.19695194]
[1767866646028,0.04029398,3102.2,3101.1,1.19695194]
[1767866646191,0.04029008,3102.5,3101.1,1.19695194]
[1767866646391,0.847,3102.4,3101.1,1.19695194]
[1767866646620,0.04029268,3102.3,3101.1,1.19695194]
[1767866646791,0.847,3102.4,3101.1,1.19695194]
[1767866646990,0.04029268,3102.3,3101.1,1.19695194]
[1767866647309,3.26372937,3102.3,3101.2,3.22455823]
[1767866647505,0.41107294,3102.2,3101.3,1.19695194]
[1767866647688,3.38183311,3103.9,3101.4,1.19695194]
[1767866647689,0.847,3103.0,3101.4,1.19695194]
[1767866647886,0.04028489,3102.9,3101.4,1.19695194]
[1767866648091,1.33034936,3102.9,3101.2,3.22455823]
[1767866648288,1.29006447,3102.7,3101.1,3.22462379]
[1767866648500,0.04028879,3102.6,3101.1,7.64623794]
[1767866648706,0.847,3102.5,3101.2,1.19695194]
[1767866648905,0.04029138,3102.4,3101.2,1.19695194]
[1767866649123,0.847,3102.3,3101.2,1.19695194]
[1767866649326,0.04029398,3102.2,3101.3,3.22445426]
[1767866649619,0.4110718,3102.1,3101.2,1.19695194]
[1767866649930,0.04029658,3102.0,3101.2,1.19695194]
[1767866650623,0.04029658,3102.0,3101.2,4.42145473]
[1767866650811,0.04029658,3102.0,3101.2,4.42148817]
[1767866651461,0.04029658,3102.0,3101.0,1.19695194]
[1767866651629,0.45136708,3102.1,3101.0,1.19695194]
[1767866651932,0.04029658,3102.0,3101.0,1.19695194]
[1767866652496,0.04029658,3102.0,3100.6,1.19695194]
[1767866652926,0.04029788,3101.9,3100.6,1.19695194]
[1767866653125,0.847,3102.1,3100.9,1.19695194]
[1767866653296,3.22383055,3101.9,3100.9,4.42181411]
[1767866653630,0.04029918,3101.8,3101.0,1.19695194]
[1767866654142,0.847,3102.1,3100.9,6.44971931]
[1767866654143,6.44433702,3103.5,3101.8,1.19695194]
[1767866654433,6.44433702,3103.5,3101.1,5.52499845]
[1767866654434,3.22216851,3103.5,3102.0,1.19695194]
[1767866654616,6.44433702,3103.5,3102.0,1.19695194]
[1767866654798,6.44433702,3103.5,3102.2,1.19695194]
[1767866654799,0.6444337,3103.4,3102.2,1.19695194]
[1767866655424,3.86674959,3103.4,3102.4,1.19695194]
[1767866655611,0.6444337,3103.4,3102.4,1.19695194]
[1767866655808,3.866809,3103.4,3102.4,1.19695194]
[1767866656135,0.001,3102.7,3102.4,1.19695194]
[1767866657721,0.001,3102.7,3102.4,4.42025622]
[1767866657933,0.001,3102.7,3102.4,7.6435672]
[1767866658234,0.001,3102.7,3102.4,1.19695194]
[1767866658411,3.86671292,3103.4,3102.4,4.42023687]
[1767866658733,0.38667129,3103.3,3102.4,4.42023687]
[1767866658963,0.38667129,3103.3,3102.5,1.19695194]
[1767866659336,3.22201857,3103.7,3102.5,1.19695194]
[1767866659650,0.846,3103.9,3102.7,1.19695194]
[1767866660006,0.001,3104.3,3102.7,1.19695194]
[1767866660432,0.001,3104.3,3102.9,1.19695194]
[1767866660712,8.57974075,3104.3,3102.7,1.19695194]
[1767866660914,0.85797407,3104.2,3102.7,1.19695194]
[1767866661440,6.44309138,3104.1,3102.7,4.41987749]
[1767866662150,9.66463707,3104.1,3102.7,1.19695194]
[1767866663843,10.95470154,3104.1,3102.7,1.19695194]
[1767866664039,1.29006447,3103.9,3102.1,0.03223622]
[1767866664228,5.96906292,3103.5,3102.1,1.19695194]
[1767866664435,0.846,3103.4,3102.1,1.19695194]
[1767866664814,0.846,3103.3,3102.3,3.22334419]
[1767866665357,1.29006447,3103.9,3102.4,1.19695194]
[1767866665358,0.846,3103.5,3102.4,1.19695194]
[1767866665819,0.846,3103.6,3102.4,1.19695194]
[1767866666150,2.13606447,3103.6,3102.1,4.42051135]
[1767866666326,2.13606447,3103.6,3102.1,1.19695194]
[1767866666645,2.13606447,3103.6,3102.2,4.42042009]
[1767866666950,2.13606447,3103.6,3102.3,1.19695194]
[1767866667639,2.13606447,3103.6,3102.4,3.22329782]
[1767866667953,0.846,3104.0,3102.5,1.19695194]
[1767866668157,0.001,3103.8,3102.7,1.19695194]
[1767866668643,0.001,3103.8,3102.4,4.42224976]
[1767866668850,1.29006447,3103.7,3102.4,0.002]
[1767866669414,0.001,3103.8,3102.4,1.19895194]
[1767866669618,0.846,3103.7,3102.4,1.19895194]
[1767866669814,6.44412938,3103.6,3102.4,1.19895194]
[1767866670020,0.85801939,3103.5,3102.4,1.19895194]
[1767866670437,0.85801939,3103.5,3102.5,1.22918401]
[1767866670637,0.847,3103.8,3102.5,1.22918401]
[1767866671050,3.22286936,3103.8,3102.5,1.22918401]
[1767866671646,0.001,3103.8,3102.5,1.22918401]
[1767866671848,0.001,3103.8,3102.7,1.19695194]
[1767866672039,0.001,3103.8,3102.7,1.22918193]
[1767866672233,0.001,3103.8,3102.9,1.32134761]
[1767866672461,0.001,3103.8,3103.1,1.32134761]
[1767866675164,0.001,3103.8,3103.1,4.54393088]
[1767866675350,0.001,3103.8,3103.1,1.32134761]
[1767866676570,0.001,3103.8,3102.7,1.32134761]
[1767866677178,0.001,3103.8,3102.8,1.32134761]
[1767866677375,0.001,3103.8,3102.8,5.00184199]
[1767866678067,0.001,3103.8,3102.9,1.32134761]
[1767866678269,0.001,3103.8,3102.9,4.544121]
[1767866679048,0.001,3103.8,3102.5,1.32134761]
[1767866679256,1.21402571,3103.5,3102.4,0.002]
[1767866679437,1.43530242,3103.4,3102.4,0.002]
[1767866679641,0.58930242,3103.4,3102.4,0.002]
[1767866679944,0.846,3103.3,3102.4,0.002]
[1767866680249,3.22248002,3103.2,3102.4,0.002]
[1767866680768,3.2224139,3103.3,3102.4,1.32334761]
[1767866680936,0.846,3103.2,3102.4,1.32334761]
[1767866681140,0.40684139,3103.2,3102.4,1.32334761]
[1767866681566,0.001,3103.5,3102.4,1.32334761]
[1767866681756,3.22234767,3103.4,3102.4,1.32334761]
[1767866682267,4.0692202,3103.5,3102.6,1.32134761]
[1767866682453,0.001,3103.5,3102.6,1.32134761]
[1767866682660,3.22323303,3103.5,3102.6,1.32134761]
[1767866683068,0.001,3103.5,3102.6,1.32134761]
[1767866683286,0.001,3103.5,3102.7,1.32134761]
[1767866683642,0.001,3103.5,3102.9,1.32134761]
[1767866683842,0.001,3103.5,3103.0,1.32134761]
[1767866684162,3.2231918,3103.5,3102.6,1.32134761]
[1767866684361,0.001,3103.5,3102.7,1.32134761]
[1767866684575,0.32329852,3103.5,3102.7,1.32134761]
[1767866687088,3.22227234,3103.4,3102.7,1.32134761]
[1767866687457,3.22227234,3103.4,3102.4,1.35558071]
[1767866687659,3.22227234,3103.4,3102.4,4.57885185]
[1767866687960,3.22227234,3103.4,3102.4,4.54661875]
[1767866688165,3.22227234,3103.4,3102.5,0.45466188]
[1767866688464,0.32329852,3103.5,3102.6,1.32134761]
[1767866688670,0.001,3103.5,3102.7,4.54434103]
[1767866688875,0.001,3103.5,3102.8,1.32134761]
[1767866689179,0.001,3103.5,3102.5,0.45466188]
[1767866689180,0.001,3103.5,3102.9,1.32134761]
[1767866689382,0.001,3103.5,3102.6,4.57662761]
[1767866690359,0.001,3103.5,3102.7,3.22299442]
[1767866690561,0.001,3103.5,3102.8,0.45765731]
[1767866691289,0.001,3103.5,3102.6,4.5766426]
[1767866691452,0.001,3103.5,3102.6,1.35357864]
[1767866691655,0.001,3103.5,3102.6,1.32134761]
[1767866695668,0.001,3103.5,3102.4,0.002]
[1767866696675,1.21502571,3103.5,3102.4,0.002]
[1767866696994,1.08812198,3103.4,3102.4,0.002]
[1767866697161,2.30214769,3103.4,3102.4,0.002]
[1767866697590,6.44475236,3103.3,3102.4,0.002]
[1767866697779,1.21402571,3103.1,3102.0,0.002]
[1767866697985,1.21402571,3102.9,3102.0,0.002]
[1767866699680,6.44599864,3102.7,3102.0,0.002]
[1767866700000,0.846,3102.6,3102.0,0.002]
[1767866700375,1.21402571,3102.5,3100.9,1.32134761]
[1767866700582,1.21402571,3102.5,3100.4,6.61134648]
[1767866700583,1.21402571,3102.5,3101.2,1.32134761]
[1767866700797,1.42002828,3102.4,3101.2,1.32134761]
[1767866702216,6.44682976,3102.3,3101.2,1.32134761]
[1767866702410,6.44682976,3102.3,3100.8,0.002]
[1767866702411,1.21941346,3101.9,3100.8,0.002]
[1767866702713,1.21941346,3101.9,3100.8,1.2758042]
[1767866702885,0.846,3101.8,3100.8,1.2758042]
[1767866703507,0.846,3101.7,3100.9,1.30654441]
[1767866703710,1.21941346,3102.2,3101.5,0.002]
[1767866703881,3.24964947,3102.1,3100.9,1.30654441]
[1767866704624,6.44745324,3102.0,3100.9,1.30654441]
[1767866704832,0.846,3101.9,3101.0,0.03224766]
[1767866705196,0.846,3102.0,3101.0,1.33879207]
[1767866705519,0.846,3102.0,3101.0,1.30654441]
[1767866705814,3.22341488,3102.3,3101.2,1.30654441]
[1767866706041,1.52068623,3103.0,3101.4,1.30654441]
[1767866706316,0.20600257,3103.0,3101.6,1.30654441]
[1767866706485,3.22348002,3103.2,3102.0,1.30654441]
[1767866706685,3.22348002,3103.2,3102.0,1.33878167]
[1767866706686,0.001,3103.2,3102.0,1.33878167]
[1767866708623,0.001,3103.2,3102.1,6.4472454]
[1767866708824,0.001,3103.2,3102.2,1.30654441]
[1767866710725,0.001,3103.2,3101.9,1.30654441]
[1767866710898,1.05141662,3103.1,3102.0,1.30654441]
[1767866711100,0.001,3103.2,3102.3,1.30654441]
[1767866712312,0.001,3103.2,3102.5,1.30654441]